[Event "Oceania Zonal Open 2023"]
[Site "Melbourne"]
[Date "2023.01.26"]
[Round "5.7"]
[White "Archer, Ollie"]
[Black "Rujevic, Mirko"]
[Result "1/2-1/2"]
[ECO "D36"]
[WhiteElo "1960"]
[BlackElo "2141"]
[Annotator "TA"]
[PlyCount "100"]
[EventDate "2023.01.09"]
[EventType "swiss"]
[EventCountry "AUS"]
[SourceTitle "playchess.com"]
[Source "ChessBase"]
[SourceQuality "1"]
[TimeControl "5400+30"]

{[%evp 22,100,48,45,40,18,37,42,43,37,54,19,18,23,20,0,10,13,59,60,58,58,78,16,178,188,180,186,178,158,171,145,163,-184,320,304,287,318,311,-22,-25,-12,-8,-8,0,-6,-11,-15,0,-24,-22,-24,-22,-145,-8,0,0,-9,0,-80,-80,-144,-17,-17,-17,-17,0,0,0,0,0,0,0,0,0,0,0,-8,8,8,8]} 1. d4 {[%emt 1:07:23]} Nf6 {[%emt 0:00:26]} 2. c4 {[%emt 0:00:09]} e6 {[%emt 0:00:10]} 3. Nf3 {[%emt 0:00:07]} d5 {[%emt 0:00:36]} 4. Nc3 {[%emt 0:00:09]} Bb4 {[%emt 0:01:18]} 5. cxd5 {[%emt 0:01:38]} exd5 {[%emt 0:04:49]} 6. Bg5 {[%emt 0:00:13]} c6 {[%emt 0:05:14]} 7. Qc2 {[%emt 0:02:09]} Nbd7 {[%emt 0:05:15]} 8. e3 {[%emt 0:00:42]} O-O {[%emt 0:00:51]} 9. Bd3 {[%emt 0:00:16]} h6 {[%emt 0:00:18]} 10. Bh4 {[%emt 0:00:08]} Re8 {[%emt 0:02:02]} 11. O-O {[%emt 0:00:36]} Bd6 {[%emt 0:02:19]} 12. Rab1 {[%emt 0:01:51]} a5 {[%emt 0:01:18] D36: Queen's Gambit Declined: Exchange Variation: Main line (5 Bg5 c6 6 Qc2).} 13. a3 {[%emt 0:02:04]} g5 {[%emt 0:07:23] [#]} 14. Bg3 $146 {[%emt 0:00:26]} ({Predecessor:} 14. Nxg5 hxg5 15. Bxg5 Bxh2+ 16. Kh1 Kg7 17. g3 Rh8 18. Kg2 Nf8 19. Bf5 Rh5 20. f4 {½-½ Wagener,C (1952)-Batagel,L (1850) Luxembourg-chT 9900 1999 (2)}) 14... Bxg3 {[%emt 0:00:08] White is slightly better.} 15. hxg3 {[%emt 0:00:09]} Ng4 {[%emt 0:04:44]} 16. Nh2 {[%emt 0:08:58]} Nxh2 {[%emt 0:06:25]} 17. Kxh2 {[%emt 0:00:07]} Nf6 {[%emt 0:00:13]} 18. Rh1 {[%emt 0:00:17]} Ng4+ {[%emt 0:05:06]} 19. Kg1 {[%emt 0:00:09]} Qf6 {[%emt 0:00:09]} (19... Kg7 $11) 20. Re1 $14 {[%emt 0:03:28]} Kg7 {[%emt 0:01:53]} 21. Qd2 {[%emt 0:02:27]} Qd6 {[%emt 0:02:32]} 22. Bc2 {[%emt 0:06:14]} (22. f3 $16) 22... f5 {[%emt 0:03:51]} (22... b6 $11 {and Black stays safe.}) 23. f3 $18 {[%emt 0:08:45]} Nf6 {[%emt 0:01:52] [#]} 24. g4 {[%emt 0:00:21][%mdl 512]} b5 {[%emt 0:04:37][%cal Bb7b5,Bb5b4][%mdl 32]} 25. gxf5 {[%emt 0:01:33]} b4 {[%emt 0:00:11]} 26. Na4 {[%emt 0:10:07] Nc5 is the strong threat.} bxa3 {[%emt 0:02:27]} 27. e4 $4 {[%emt 0:00:38][%mdl 8192]} (27. bxa3 $18 {and all is fine. aiming for Nc5.} Qxa3 28. g4) 27... Qb4 {[%emt 0:07:26][%mdl 8192] Dodges Nc5} (27... dxe4 $1 $19 28. Bxe4 (28. fxe4 $2 {loses.} Bxf5 29. e5 Rxe5 $19) 28... Bxf5 29. Bxf5 Rxe1+ 30. Qxe1 Re8) 28. Qxb4 {[%emt 0:00:50]} axb4 {[%emt 0:00:02]} 29. e5 {[%emt 0:00:10]} Ng8 {[%emt 0:00:34][%cal Oc8f5] And now ...Bxf5! would win.} 30. bxa3 $2 {[%emt 0:00:21] [#]} ({Better is} 30. g4 $18) 30... Bxf5 $1 $11 {[%emt 0:00:35][%mdl 64] Deflection} 31. Bxf5 {[%emt 0:00:17]} Rxa4 {[%emt 0:00:07]} 32. axb4 {[%emt 0:04:42]} Ne7 {[%emt 0:05:23]} 33. Be6 {[%emt 0:02:06]} (33. Bd7 $5 {[%cal Rd7e8]} Rd8 34. Be6 $11) 33... Rxb4 {[%emt 0:00:16]} 34. Rd1 {[%emt 0:00:13]} Ra8 {[%emt 0:05:14]} 35. f4 {[%emt 0:01:49][%mdl 64] Deflection} gxf4 {[%emt 0:00:13] Hoping for ...Raa4.} 36. Rh4 {[%emt 0:00:09] Threatens to win with Rg4+.} Ng6 {[%emt 0:00:39]} 37. Rg4 {[%emt 0:00:07] [#]} (37. Rh5 $11) 37... h5 {[%emt 0:00:14]} ({Black should try} 37... Rf8 $1 $17 {Black wants to play ...h5.} 38. Rd2 h5) 38. Rg5 {[%emt 0:00:16] Bf5 would be deadly.} Kh6 {[%emt 0:00:21]} 39. Rf5 {[%emt 0:00:06]} Rf8 {[%emt 0:00:25]} 40. Rxf8 {[%emt 0:00:50]} (40. Bf7 $11 Rb2 41. Kh1 (41. Bxg6 Rg8 $11)) 40... Nxf8 {[%emt 0:00:01][%mdl 4096] Endgame KRB-KRN} 41. Bf7 {[%emt 0:00:15] [#]} (41. Rc1 $142) 41... Rb7 {[%emt 0:01:54]} (41... Ng6 $1 $17 {With the idea ...Ne7.} 42. Be8 Ne7) 42. Be8 {[%emt 0:00:37] The position is equal.} Rc7 {[%emt 0:00:46] Strongly threatening ...Ne6.} 43. Rc1 {[%emt 0:00:26]} Ne6 {[%emt 0:00:46]} 44. Rxc6 {[%emt 0:00:19]} Rxc6 {[%emt 0:00:09]} 45. Bxc6 {[%emt 0:00:06]} Nxd4 {[%emt 0:00:08]} 46. Bxd5 {[%emt 0:00:06] KB-KN} Kg5 {[%emt 0:00:17]} 47. Be4 {[%emt 0:00:24]} h4 {[%emt 0:00:46]} 48. Kf2 {[%emt 0:00:13]} Kg4 {[%emt 0:01:53]} 49. Bd3 {[%emt 0:00:42]} Nc6 {[%emt 0:00:45]} 50. e6 {[%emt 0:00:03]} Ne7 {[%emt 0:00:08] Weighted Error Value: White=0.50/Black=0.42} 1/2-1/2

[Event "Oceania Zonal Open 2023"]
[Site "Melbourne"]
[Date "2023.01.25"]
[Round "5.8"]
[White "Bjelobrk, Igor"]
[Black "Anderson, Brendan"]
[Result "1-0"]
[ECO "A09"]
[WhiteElo "2405"]
[BlackElo "1926"]
[Annotator "TA"]
[PlyCount "81"]
[EventDate "2023.01.09"]
[EventType "swiss"]
[EventCountry "AUS"]
[SourceTitle "playchess.com"]
[Source "ChessBase"]
[SourceQuality "1"]
[TimeControl "5400+30"]

{[%evp 10,80,37,30,37,27,40,0,23,33,40,7,4,8,43,23,31,25,36,30,28,25,31,0,60,48,55,50,42,53,54,48,66,48,72,80,79,70,81,80,117,124,104,104,248,254,379,362,383,327,372,329,500,500,664,664,634,352,611,595,714,540,535,527,589,568,887,850,29994,29995,29998,29999,29999]} 1. Nf3 {[%emt 0:00:06]} d5 {[%emt 0:00:04]} 2. g3 {[%emt 0:00:30]} Nf6 {[%emt 0:00:17]} 3. Bg2 {[%emt 0:00:06]} g6 {[%emt 0:00:17]} 4. c4 {[%emt 0:00:26]} dxc4 {[%emt 0:01:24]} 5. Qa4+ {[%emt 0:00:16]} c6 {[%emt 0:00:30]} 6. Qxc4 {[%emt 0:00:13]} Bg7 {[%emt 0:00:52] A09: Réti Opening: 1 Nf3 d5 2 c4.} 7. O-O {[%emt 0:00:26]} O-O {[%emt 0:02:08]} 8. d3 {[%emt 0:00:15]} Nbd7 {[%emt 0:02:00] The position is equal.} 9. Qc2 {[%emt 0:00:24] [#]} a5 $146 {[%emt 0:00:30]} ({Predecessor:} 9... Nb6 10. Nc3 Re8 11. b3 e5 12. Bb2 Bg4 13. h3 Bd7 14. Rfd1 Rc8 15. Nd2 Be6 {½-½ Malakhov,V (2706)-Fedoseev,V (2674) Vladimir Petrov Memorial blitz op 2015 (10)}) 10. Bd2 {[%emt 0:08:21]} Nd5 {[%emt 0:04:34]} 11. Nc3 {[%emt 0:02:48][%cal Bb1c3,Bc3a4,Ba4c3][%mdl 32]} N7f6 {[%emt 0:02:22]} 12. a3 {[%emt 0:03:22]} Bg4 {[%emt 0:07:29]} 13. Ne5 {[%emt 0:03:35]} Be6 {[%emt 0:00:46]} 14. Na4 {[%emt 0:01:07]} Nd7 {[%emt 0:05:55]} 15. Nf3 {[%emt 0:01:04]} b5 {[%emt 0:06:53]} 16. Nc3 {[%emt 0:00:25]} N7f6 {[%emt 0:05:25]} (16... a4 $11) 17. Ng5 {[%emt 0:10:50]} Bg4 {[%emt 0:01:28]} 18. h3 {[%emt 0:03:54]} Bd7 {[%emt 0:00:18]} 19. Nce4 {[%emt 0:04:13]} h6 {[%emt 0:07:05]} 20. Nxf6+ {[%emt 0:00:26]} Nxf6 {[%emt 0:00:14]} 21. Nf3 {[%emt 0:00:06] White is more active.} Nd5 {[%emt 0:05:55]} 22. e4 {[%emt 0:03:04]} Nb6 {[%emt 0:03:37]} 23. Bc3 {[%emt 0:16:35]} Bxc3 {[%emt 0:02:04]} 24. Qxc3 {[%emt 0:00:05]} Qc8 {[%emt 0:00:11]} 25. h4 {[%emt 0:03:32]} c5 {[%emt 0:00:55]} 26. Rfc1 {[%emt 0:03:45][%cal Oc3d2]} c4 {[%emt 0:02:21] [#] Black cannot hold the game after this.} (26... Qc7 $16) 27. dxc4 $1 $18 {[%emt 0:00:22]} Nxc4 {[%emt 0:01:47]} (27... Qc5 {keeps fighting.} 28. cxb5 Qxc3 29. bxc3 Rfc8) 28. b3 {[%emt 0:00:24]} Nd6 {[%emt 0:00:17]} 29. Qe3 {[%emt 0:00:20]} Qa6 {[%emt 0:03:32]} 30. Ne5 {[%emt 0:07:08] Inhibits h5.} ({Don't play} 30. Qxh6 Nxe4 31. Re1 Qf6 $18) 30... Be6 {[%emt 0:00:33]} (30... Ra7 {is a better defense.} 31. Qxh6 Ne8) 31. Qxh6 {[%emt 0:01:34]} Bxb3 {[%emt 0:01:02] [#]} 32. Nxg6 $1 {[%emt 0:03:44][%mdl 576] Demolition} fxg6 {[%emt 0:00:34]} 33. Qxg6+ {[%emt 0:00:07]} Kh8 {[%emt 0:00:06]} 34. Rc5 {[%emt 0:01:08][%cal Rc5h5]} Nf5 {[%emt 0:00:53]} 35. exf5 {[%emt 0:00:37] Threatening mate with f6.} Qxg6 {[%emt 0:03:55]} 36. fxg6 {[%emt 0:00:06]} Rab8 {[%emt 0:00:06]} 37. Re1 {[%emt 0:01:13]} Kg7 {[%emt 0:00:58]} 38. Rxe7+ {[%emt 0:00:46]} Kxg6 {[%emt 0:00:11]} 39. Rc6+ {[%emt 0:00:50] White mates.} Kh5 {[%emt 0:00:55]} 40. Re5+ {[%emt 0:00:28]} Kg4 {[%emt 0:00:19]} 41. Rg5# {[%emt 0:00:11] Weighted Error Value: White=0.16 (very precise) /Black=0.57} 1-0

[Event "Oceania Zonal Open 2023"]
[Site "Melbourne"]
[Date "2023.01.26"]
[Round "5.8"]
[White "Tang, Hao"]
[Black "Jager, Jesse"]
[Result "1/2-1/2"]
[ECO "D35"]
[WhiteElo "1913"]
[BlackElo "2132"]
[Annotator "TA"]
[PlyCount "69"]
[EventDate "2023.01.09"]
[EventType "swiss"]
[EventCountry "AUS"]
[SourceTitle "playchess.com"]
[Source "ChessBase"]
[SourceQuality "1"]
[TimeControl "5400+30"]

{[%evp 20,69,0,-5,0,-14,-3,-16,0,0,0,-4,0,-9,0,-9,0,-9,0,0,0,0,17,-11,0,-16,-9,-9,0,-16,-16,-25,-3,-62,-63,-70,-38,-41,-41,-44,66,54,97,0,0,0,0,0,0,0,0,0]} 1. d4 {[%emt 0:00:03]} d5 {[%emt 0:01:39]} 2. c4 {[%emt 0:00:06]} c6 {[%emt 0:00:24]} 3. Nf3 {[%emt 0:00:06]} Nf6 {[%emt 0:00:09]} 4. Nc3 {[%emt 0:00:05]} e6 {[%emt 0:00:07]} 5. cxd5 {[%emt 0:00:06]} exd5 {[%emt 0:00:09]} 6. Bg5 {[%emt 0:00:07]} Be7 {[%emt 0:00:50]} 7. e3 {[%emt 0:00:09]} Bf5 {[%emt 0:00:12]} 8. Bd3 {[%emt 0:00:37]} Bxd3 {[%emt 0:00:10]} 9. Qxd3 {[%emt 0:00:05]} Nbd7 {[%emt 0:00:26]} 10. O-O {[%emt 0:00:19]} O-O {[%emt 0:00:10]} 11. Rfc1 {[%emt 0:00:15]} Re8 {[%emt 0:01:30] D35: Queen's Gambit Declined: Exchange Variation.} 12. a3 {[%emt 0:00:45]} a5 {[%emt 0:00:41]} 13. Na4 {[%emt 0:03:05]} Ne4 {[%emt 0:01:06]} 14. Bxe7 {[%emt 0:00:45]} Qxe7 {[%emt 0:00:07]} 15. Nd2 {[%emt 0:00:50] [#]} Ndf6 $146 {[%emt 0:04:52][%cal Bd7f6,Bf6h5,Bh5g7,Bg7f5][%mdl 32]} ({Predecessor:} 15... Nd6 16. Nc5 a4 17. b3 Nxc5 18. dxc5 Nb5 19. b4 Qf6 20. Nf3 Re4 21. Ra2 Rae8 {0-1 Garcia Galeote,L (2082)-Korneev,O (2587) La Roda op 36th 2009 (1)}) 16. Nc5 {[%emt 0:02:07]} Nd6 {[%emt 0:09:46]} 17. Rab1 {[%emt 0:01:25]} g6 {[%emt 0:03:36]} 18. h3 {[%emt 0:01:49]} Nh5 {[%emt 0:00:45]} 19. Qb3 {[%emt 0:07:11]} Ng7 {[%emt 0:04:28]} 20. Qd1 {[%emt 0:01:38]} Ngf5 {[%emt 0:01:45]} 21. Qf3 {[%emt 0:01:46]} h5 {[%emt 0:01:36]} 22. Nd3 {[%emt 0:01:00]} Ne4 {[%emt 0:01:23]} 23. Qe2 {[%emt 0:02:21]} Ned6 {[%emt 0:01:39]} 24. Nf3 {[%emt 0:01:09]} Kg7 {[%emt 0:01:15]} 25. Nde5 {[%emt 0:00:40]} Rh8 {[%emt 0:03:15]} 26. b4 {[%emt 0:08:20]} (26. Re1 $11) 26... axb4 $15 {[%emt 0:02:23]} 27. axb4 {[%emt 0:02:58]} f6 {[%emt 0:00:41]} (27... Nb5 $5 {[%cal Rf7f6]}) 28. Nd3 {[%emt 0:00:09]} g5 {[%emt 0:00:38]} 29. Qc2 $1 {[%emt 0:01:09]} Kf7 {[%emt 0:02:31] [#]} ({Better is} 29... Ra3 $15) 30. b5 $1 $14 {[%emt 0:00:54]} g4 {[%emt 0:01:50] [#]} ({Less strong is} 30... Nxb5 31. Nde5+ fxe5 32. Qxf5+ Kg7 33. Nxg5 $16 (33. Nxe5 Rh6 $16)) (30... cxb5 31. Qb3) 31. Nfe1 {[%emt 0:06:15]} ({White should play} 31. bxc6 $1 $16 {[%cal Ob1b7] Rxb7! is the strong threat.} bxc6 32. Nd2) 31... Nxb5 $11 {[%emt 0:18:37] Strongly threatening ...Na3. The position is equal.} 32. Ne5+ {[%emt 0:07:50][%mdl 64] Discovered Attack} fxe5 {[%emt 0:00:32]} 33. Qxf5+ {[%emt 0:00:00]} Qf6 {[%emt 0:02:36]} 34. Qd7+ {[%emt 0:02:25]} Qe7 $1 {[%emt 0:00:16]} 35. Qf5+ {[%emt 0:00:09] Weighted Error Value: White=0.14 (very precise) /Black=0.15 (very precise)} 1/2-1/2

[Event "Oceania Zonal Open 2023"]
[Site "Melbourne"]
[Date "2023.01.25"]
[Round "5.9"]
[White "Stojic, Svetozar"]
[Black "Winkelman, Albert"]
[Result "0-1"]
[ECO "A05"]
[WhiteElo "1974"]
[BlackElo "2272"]
[Annotator "TA"]
[PlyCount "104"]
[EventDate "2023.01.09"]
[EventType "swiss"]
[EventCountry "AUS"]
[SourceTitle "playchess.com"]
[Source "ChessBase"]
[SourceQuality "1"]
[TimeControl "5400+30"]

{[%evp 9,104,-3,-9,-12,-10,-21,-21,-24,-14,-11,-19,-25,-12,-45,-35,-54,65,-19,38,20,18,21,9,0,152,161,144,156,134,142,207,22,116,56,216,201,198,52,66,62,57,61,57,70,70,70,169,-258,-89,-98,-93,-74,-73,-71,-72,-63,-86,-93,-79,-231,-244,-273,-261,-241,-252,-248,-250,-250,-241,-269,-269,-293,-287,-270,-106,-379,-436,-443,-426,-418,-423,-408,-416,-417,-269,-353,-269,-2828,-1755,-5417,-5417,-5417,-5409,-5404,-5404,-12841,-6739]} 1. Nf3 {[%emt 0:02:10]} Nf6 {[%emt 0:00:15]} 2. g3 {[%emt 0:00:31]} b5 {[%emt 0:00:09]} 3. a4 {[%emt 0:04:42]} b4 {[%emt 0:00:10]} 4. Bg2 {[%emt 0:03:01]} Bb7 {[%emt 0:00:12]} 5. d4 {[%emt 0:07:00] [#]} c5 $1 {[%emt 0:01:57]} 6. c4 {[%emt 0:01:28] A05: Réti Opening: 1 Nf3 Nf6.} (6. c3 cxd4) 6... cxd4 {[%emt 0:01:54]} 7. O-O {[%emt 0:00:38] [#]} Qc7 $146 {[%emt 0:06:12]} ({Predecessor:} 7... g6 8. Nbd2 Bg7 9. Nb3 O-O 10. Nfxd4 Bxg2 11. Kxg2 Qc7 12. c5 Na6 13. f3 Nxc5 {0-1 Kozlov,O (2296)-Fedorchuk,S (2671) Corsica Masters op 14th 2010 (1)}) 8. Qxd4 {[%emt 0:05:07] The position is equal.} Nc6 {[%emt 0:00:11]} 9. Qh4 {[%emt 0:00:53]} Na5 {[%emt 0:03:09]} 10. Nbd2 {[%emt 0:01:44]} b3 {[%emt 0:00:22]} 11. Nd4 {[%emt 0:07:13]} Bxg2 {[%emt 0:00:15]} 12. Kxg2 {[%emt 0:00:06]} Rb8 {[%emt 0:00:24]} (12... e5 $15 13. Nf5 h6) 13. Nb5 {[%emt 0:09:09]} ({Better is} 13. N2f3 $1 $14) 13... Qc6+ {[%emt 0:04:16]} (13... Qb7+ $11 14. Nf3 a6) 14. Nf3 $1 $14 {[%emt 0:02:44]} a6 {[%emt 0:01:05][%cal Oa5c4]} 15. Bf4 {[%emt 0:06:25]} d6 {[%emt 0:00:36][%cal Oa5c4]} 16. Rfc1 {[%emt 0:03:58][%cal Oc4c5] aiming for c5!} axb5 $2 {[%emt 0:04:44]} (16... Qd7 $11) 17. axb5 $16 {[%emt 0:02:53]} Qb6 {[%emt 0:01:30]} 18. Be3 $36 {[%emt 0:08:25][%mdl 3072] White has strong compensation. White has strong initiative.} Qd8 {[%emt 0:00:22]} 19. Ba7 {[%emt 0:00:19]} Rb7 {[%emt 0:00:59]} (19... g5 $16 20. Qxg5 Ra8) 20. b6 $2 {[%emt 0:00:47]} (20. c5 $1 $18) 20... Nc6 {[%emt 0:00:11]} (20... g5 $1 $11 21. Qxg5 Nc6) 21. c5 $1 {[%emt 0:00:25] Threatens to win with cxd6.} d5 {[%emt 0:02:48]} ({Black should play} 21... Qd7 $14) 22. Qa4 {[%emt 0:02:06][%csl LRb3,LRc6]} Qd7 {[%emt 0:00:20] [#]} 23. Ne5 $1 {[%emt 0:04:37][%mdl 512]} Nxe5 $14 {[%emt 0:00:14]} 24. c6 {[%emt 0:00:25]} Nxc6 {[%emt 0:00:19]} 25. Rxc6 {[%emt 0:00:36][%cal Rc6c8]} e5 $1 {[%emt 0:01:44]} (25... Kd8 $2 26. Rac1 e5 27. Rc8+ Ke7 28. R1c7 Rxc7 29. Rxc7 $18) 26. Rc8+ {[%emt 0:05:40]} Ke7 {[%emt 0:00:07][%cal Be8e7,Be7d6,Bd6d7,Bd7e6][%mdl 32]} 27. Qb4+ {[%emt 0:03:16]} Qd6 {[%emt 0:02:24]} (27... Ke6 $1 $14 28. Rxf8 Rxf8 29. Qxf8 Ne8) 28. Qxd6+ $2 {[%emt 0:01:08]} (28. Qxb3 $18 {Rac1 would be deadly.} g6 29. Rac1) 28... Kxd6 $17 {[%emt 0:00:24]} 29. Rac1 {[%emt 0:00:06] [#] And now R8c7 would win.} Kd7 {[%emt 0:04:18]} 30. R1c7+ {[%emt 0:04:12]} Rxc7 {[%emt 0:00:08]} 31. Rxc7+ {[%emt 0:00:11]} Ke6 {[%emt 0:00:13]} 32. Rc8 {[%emt 0:00:14]} Rg8 {[%emt 0:00:05]} 33. b7 {[%emt 0:04:28]} Bd6 {[%emt 0:00:14]} 34. g4 $2 {[%emt 0:01:47] [#]} Kd7 $1 $19 {[%emt 0:00:49]} 35. Rxg8 {[%emt 0:01:27]} Nxg8 {[%emt 0:00:08]} 36. b8=Q {[%emt 0:00:21]} Bxb8 {[%emt 0:00:08]} 37. Bxb8 {[%emt 0:00:03][%mdl 4096] Endgame KB-KN} Ke6 {[%emt 0:00:10]} 38. f4 {[%emt 0:02:36]} f6 {[%emt 0:00:49]} 39. Kf3 {[%emt 0:01:03]} Ne7 {[%emt 0:00:14]} 40. Ke3 {[%emt 0:00:25]} Nc6 {[%emt 0:01:45]} 41. Bc7 {[%emt 0:00:35]} e4 $2 {[%emt 0:10:22]} (41... exf4+ $19 {and Black stays clearly on top.} 42. Kxf4 g5+ 43. Kg3 d4) 42. Kd2 $2 {[%emt 0:00:45][%mdl 8192]} (42. f5+ $17 Kd7 43. Bf4) 42... d4 {[%emt 0:00:20]} 43. e3 {[%emt 0:00:37]} dxe3+ {[%emt 0:00:34]} 44. Kxe3 {[%emt 0:00:06]} Kd5 {[%emt 0:00:07] Strongly threatening ...g6.} 45. Kd2 {[%emt 0:00:41]} Nd4 {[%emt 0:02:05]} 46. h3 {[%emt 0:01:01]} g6 {[%emt 0:01:51] ...Ne6 is the strong threat.} 47. Bb6 {[%emt 0:01:03]} Nb5 {[%emt 0:00:11]} 48. Ke3 $2 {[%emt 0:00:20] [#]} (48. Ba5) 48... Na3 $1 {[%emt 0:02:02][%mdl 576] Promotion. Black is clearly winning.} 49. Bd8 {[%emt 0:00:09]} (49. Ke2 Nc4) 49... Nc4+ {[%emt 0:00:08]} 50. Ke2 {[%emt 0:00:26]} Nxb2 {[%emt 0:00:06] ( -> ...Nc4)} 51. Bxf6 {[%emt 0:00:14]} Nc4 {[%emt 0:00:09]} 52. Kd1 {[%emt 0:00:40]} e3 {[%emt 0:01:12] Quite a comeback for Black. Artfully played by Winkelman.   Weighted Error Value: White=0.74/Black=0.35} 0-1

[Event "Oceania Zonal Open 2023"]
[Site "Melbourne"]
[Date "2023.01.26"]
[Round "5.9"]
[White "Wang, Ruicheng"]
[Black "Litchfield, Frederick"]
[Result "1/2-1/2"]
[ECO "B23"]
[WhiteElo "1891"]
[BlackElo "2119"]
[Annotator "TA"]
[PlyCount "120"]
[EventDate "2023.01.09"]
[EventType "swiss"]
[EventCountry "AUS"]
[SourceTitle "playchess.com"]
[Source "ChessBase"]
[SourceQuality "1"]
[TimeControl "5400+30"]

{[%evp 10,120,13,10,29,15,14,24,33,25,40,25,31,29,61,58,98,104,100,19,84,39,45,40,38,23,45,47,58,56,58,10,94,106,110,5,144,138,137,118,113,114,106,123,108,104,104,104,112,102,176,171,166,50,44,30,30,30,30,30,30,30,30,39,85,16,16,16,16,16,16,16,16,16,154,154,154,154,146,146,325,325,2837,575,2837,2323,29960,6154,4610,0,0,0,0,0,0,0,0,0,0,0,29985,0,0,0,0,0,0,0,0,0,0,0,0]} 1. e4 {[%emt 0:00:03]} c5 {[%emt 0:00:49]} 2. Nc3 {[%emt 0:00:07]} Nc6 {[%emt 0:02:19]} 3. Bb5 {[%emt 0:00:06]} Nd4 {[%emt 0:00:40]} 4. Nf3 {[%emt 0:00:05]} Nxb5 {[%emt 0:08:25]} 5. Nxb5 {[%emt 0:00:08]} d6 {[%emt 0:01:15]} 6. d4 {[%emt 0:00:05]} a6 {[%emt 0:02:19] B23: Closed Sicilian: Lines without g3.} 7. Nc3 {[%emt 0:00:05]} cxd4 {[%emt 0:01:17]} 8. Qxd4 {[%emt 0:00:04]} e5 {[%emt 0:02:24] White has an edge.} 9. Qb4 {[%emt 0:00:04]} Ne7 {[%emt 0:02:21]} ({Resist} 9... d5 10. Qb3 $16) 10. O-O {[%emt 0:00:05]} Nc6 {[%emt 0:01:08]} 11. Qb3 {[%emt 0:00:04] [#]} Be7 $146 {[%emt 0:01:34] Repels Ng5} ({Predecessor:} 11... Na5 12. Qd5 Be6 13. Qd2 Be7 14. b3 b5 15. Nd5 Bxd5 16. Qxd5 O-O 17. Bd2 Qb6 {1-0 Liang,J (2342)-Tsyganov,I (2221) Charlotte Spring Classic 2021 (5)}) 12. Nd5 {[%emt 0:08:32]} O-O {[%emt 0:02:22]} 13. Be3 $1 {[%emt 0:03:29]} b5 {[%emt 0:02:48]} 14. h3 {[%emt 0:15:54] White is much more active. The black rooks are badly placed.} ({White should try} 14. a4 $16 b4 15. c3 (15. Nxb4 Nxb4 16. Qxb4 Qc7 $11)) 14... Kh8 {[%emt 0:08:21]} (14... Na5 $11 15. Qd3 Nc4) 15. Rad1 {[%emt 0:06:49]} Be6 {[%emt 0:01:37]} 16. Qa3 {[%emt 0:06:41]} Bxd5 {[%emt 0:08:12]} 17. Rxd5 {[%emt 0:00:19]} f5 {[%emt 0:01:41]} 18. exf5 {[%emt 0:05:45]} Rxf5 {[%emt 0:00:17]} 19. Rfd1 {[%emt 0:00:44]} Qg8 {[%emt 0:08:16]} 20. Qd3 {[%emt 0:20:59]} (20. Qb3 $14 {is superior.}) 20... Raf8 {[%emt 0:01:05]} (20... Rxf3 $1 $11 {remains equal.} 21. gxf3 Nb4) 21. Qe4 $16 {[%emt 0:00:26]} Qe6 {[%emt 0:05:31] [#]} 22. Bg5 {[%emt 0:09:11]} Rd8 {[%emt 0:16:47]} (22... Bxg5 $2 23. Rxd6 Qe8 24. Rxc6 $16) (22... Rxg5 $2 23. Nxg5 Bxg5 24. Rxd6 $18) (22... Rxf3 $11 23. Bxe7 R3f4 24. Rxd6 Qxe7 25. Qxc6 Rxf2) 23. Bxe7 {[%emt 0:06:06]} Nxe7 {[%emt 0:01:16]} 24. Nd4 {[%emt 0:00:18][%mdl 64] Pin, Double Attack} Qxd5 {[%emt 0:00:46]} 25. Qxd5 {[%emt 0:00:06]} Nxd5 {[%emt 0:00:22]} 26. Nxf5 {[%emt 0:00:04]} g6 {[%emt 0:08:17]} 27. Rxd5 {[%emt 0:00:14]} gxf5 {[%emt 0:00:09][%mdl 4096] Endgame [#] KR-KR} 28. f4 $1 {[%emt 0:00:53][%mdl 512]} exf4 {[%emt 0:00:31][%cal Of4f3]} 29. Rxf5 {[%emt 0:00:06]} Rc8 {[%emt 0:04:18]} (29... Re8 $16) 30. c3 $18 {[%emt 0:00:51]} ({And not} 30. Rxf4 Rxc2 31. Rf2 Rc1+ 32. Kh2 Kg7 $11) 30... Rc4 {[%emt 0:00:49]} 31. Rf6 {[%emt 0:02:46]} (31. a3 $1 $18) 31... b4 $1 $14 {[%emt 0:00:48]} 32. cxb4 {[%emt 0:01:29]} Rxb4 {[%emt 0:00:09]} 33. Rxd6 {[%emt 0:00:18]} Rxb2 {[%emt 0:00:17]} 34. Rxa6 {[%emt 0:00:08] aiming for Ra7.} Kg7 {[%emt 0:00:31]} 35. a4 {[%emt 0:02:45]} Ra2 {[%emt 0:00:05]} 36. a5 {[%emt 0:00:06]} Kf7 {[%emt 0:04:21]} 37. Ra8 {[%emt 0:00:12]} (37. Kf1 $16) 37... Kg6 $11 {[%emt 0:00:37]} 38. a6 {[%emt 0:00:39]} Kh5 {[%emt 0:00:25]} 39. a7 {[%emt 0:00:33]} Kh4 {[%emt 0:00:31]} 40. Kf1 {[%emt 0:01:22]} (40. Kh2 {simplifies} Ra3 41. Rf8 Rxa7 42. Rxf4+ Kg5 43. Rg4+) 40... Kh5 {[%emt 0:00:47]} 41. Ke1 {[%emt 0:01:14]} (41. Rf8 {simplifies} Rxa7 42. Rxf4 Ra3 43. Rf5+) 41... Kh4 {[%emt 0:00:36]} (41... Ra4 $11 {keeps the balance.}) 42. Kd1 $1 $16 {[%emt 0:01:37]} Kh5 {[%emt 0:02:39][%cal Oh5h6] [#]} 43. Kc1 $1 {[%emt 0:00:32]} Kh4 {[%emt 0:00:04]} 44. Kb1 {[%emt 0:01:00]} Ra6 {[%emt 0:01:36]} (44... Ra4 $16 {was called for.} 45. Kb2 Ra5) 45. Kb2 $18 {[%emt 0:00:15]} f3 $2 {[%emt 0:00:40]} (45... Kh5 46. Kb3 Kh4) 46. gxf3 {[%emt 0:00:42]} Kxh3 {[%emt 0:00:10]} 47. f4 {[%emt 0:05:07]} h5 {[%emt 0:00:29]} 48. f5 {[%emt 0:00:18][%cal Of5f6]} h4 {[%emt 0:00:22] [#]} 49. f6 $2 {[%emt 0:00:19]} Rxf6 $11 {[%emt 0:00:05]} 50. Rb8 {[%emt 0:00:24]} Ra6 {[%emt 0:00:25]} 51. a8=Q {[%emt 0:00:06]} Rxa8 {[%emt 0:00:07]} 52. Rxa8 {[%emt 0:00:03] KR-KP} Kg2 {[%emt 0:00:15]} 53. Rg8+ {[%emt 0:03:08]} Kf3 {[%emt 0:00:09]} 54. Rh8 {[%emt 0:00:39]} Kf4 $2 {[%emt 0:00:10][%mdl 8192]} (54... Kg3 $11) 55. Rg8 $2 {[%emt 0:00:01]} (55. Rxh4+ {mates} Kg5 56. Re4 Kf5 57. Re1 Kg4 58. Rf1 Kh4 59. Rg1 Kh3 60. Kc3) 55... Kf3 {[%emt 0:00:11] The position is equal.} 56. Rh8 {[%emt 0:00:02]} Kg3 57. Kc2 {White threatens Kd1 and mate.} h3 58. Kd2 {[%emt 0:00:05] White wants to mate with Ke2.} h2 {[%emt 0:00:02]} 59. Ke2 {Kf1 would kill now.} Kg2 60. Rg8+ Kh1 {[%emt 0:00:30] Weighted Error Value: White=0.31/Black=0.44} 1/2-1/2